Cogmind - Beta 14 @@@ ROGUE MODE // 2024.09.23 @ 19:11:57 Player: Keppler Result: Destroyed by as-96454 with Assembled F-torch Performance ------------- Evolutions (1) 500 Regions Visited (4) 800 Robots Destroyed (44) 220 Value Destroyed (1013) 1013 Prototype IDs (0) 0 Alien Tech Used (0) 0 Bonus (0) 0 TOTAL SCORE: 2533 Bonus ------- None Cogmind --------- Core Integrity 0/400 Matter 300/300 Energy 100/100 System Corruption 3% Temperature Cool (40) Movement Core (700) Ox13 Location -9/Mines Parts ------- > --- POWER (2) -------- (None) > --- PROPULSION (2) --- (None) > --- UTILITY (3) ------ High-capacity Storage Unit Targeting Computer > --- WEAPON (2) ------- (None) > --- INVENTORY (20) --- Improved Heat Sink High-capacity Battery (250) High-capacity Matter Pod (200) Sensor Array Targeting Computer Targeting Computer Targeting Computer Targeting Computer ECM Suite Light Armor Plating Shield Generator Peak State ------------ > --- POWER ------------ Ion Engine Improved Ion Engine > --- PROPULSION ------- Improved Aluminum Leg Improved Aluminum Leg > --- UTILITY ---------- Heat Sink High-capacity Storage Unit Targeting Computer > --- WEAPON ----------- Small Laser Beam Cannon > --- INVENTORY -------- Aluminum Leg Improved Aluminum Leg Heat Sink Improved Heat Sink High-capacity Battery High-capacity Matter Pod Sensor Array Targeting Computer Targeting Computer Targeting Computer Targeting Computer ECM Suite Light Armor Plating Shield Generator Heavy Assault Rifle [Rating: 14] Favorites ----------- Power Light Ion Engine Engine Light Ion Engine Propulsion Aluminum Leg Leg Aluminum Leg Utility Heat Sink Device Heat Sink Storage High-capacity Storage Unit Processor Targeting Computer Weapon Medium Laser Energy Gun Medium Laser Energy Cannon Beam Cannon Ballistic Gun Assault Rifle Ballistic Cannon Light Cannon Launcher Rocket Launcher Build | -11 -10 -10 -9 -9 ------- Run | Yrd Mat Min Mat Min Slots Evolved 2 | . . . 2 . Power 1 | . . . 1 . Propulsion . | . . . . . Utility 1 | . . . 1 . Weapon . | . . . . . Parts Attached 31 | 6 10 2 9 4 Power 7 | 1 2 1 2 1 Engine 7 | 1 2 1 2 1 Core . | . . . . . Reactor . | . . . . . Propulsion 9 | 2 3 . 3 1 Treads . | . . . . . Leg 9 | 2 3 . 3 1 Wheel . | . . . . . Hover . | . . . . . Flight . | . . . . . Utility 7 | 2 3 . 1 1 Device 3 | 1 1 . . 1 Storage 3 | 1 2 . . . Processor 1 | . . . 1 . Hackware . | . . . . . Protection . | . . . . . Artifact . | . . . . . Weapon 8 | 1 2 1 3 1 Energy Gun 3 | . 1 1 1 . Energy Cannon 1 | . . . 1 . Ballistic Gun 2 | 1 . . . 1 Ballistic Cannon 1 | . 1 . . . Launcher 1 | . . . 1 . Special Weapon . | . . . . . Impact Weapon . | . . . . . Slashing Weapon . | . . . . . Piercing Weapon . | . . . . . Special Melee Weapon . | . . . . . Unidentified Prototypes . | . . . . . Parts Lost 22 | . 2 2 13 5 Power 6 | . 1 1 3 1 Propulsion 7 | . 1 . 5 1 Utility 2 | . . . 1 1 Weapon 7 | . . 1 4 2 Highest Loss Streak 5 | . 1 2 5 5 To Critical Strikes 1 | . . . 1 . Average Slot Usage (%) 90 | . 91 97 90 62 Engine 11 | . 8 13 16 8 Leg 22 | . 25 28 20 8 Device 12 | . 14 14 10 11 Storage 12 | . 14 14 11 11 Processor 4 | . . . 11 11 Energy Gun 11 | . 13 13 7 8 Energy Cannon 3 | . . . 9 . Ballistic Gun 5 | . 10 . . 4 Ballistic Cannon 3 | . 3 14 1 . Peak Build Rating 14 | 8 9 8 14 9 Average Rating 8 | 6 7 7 11 7 On Entrance 5 | . 8 8 8 4 Naked Turns . | . . . . . Heaviest Build 57 | 11 49 51 57 48 Greatest Support 26 | 20 20 20 26 10 Greatest Overweight (x) 16 | . 16 2 13 15 Average Overweight (x) 1 | . 1 2 2 5 Largest Inventory Capacity 20 | 8 20 20 20 20 Average Capacity 16 | 7 14 20 20 20 Most Carried 15 | 4 15 14 15 13 Average Carried 10 | 2 10 12 12 11 Final Capacity 20 | 8 20 20 20 20 Final Carried 14 | 3 13 12 14 11 Class Distribution -------------------- 97% | Mutant Dominant Class ---------------- Mutant | -10/Materials Mutant | -10/Mines Mutant | -9/Materials Mutant | -9/Mines Resources | -11 -10 -10 -9 -9 ----------- Run | Yrd Mat Min Mat Min Matter Collected 1085 | 350 432 91 185 27 Remotely . | . . . . . Salvage Created 1461 | 168 617 64 585 27 Parts 88 | 16 40 3 28 1 Haulers Intercepted 2 | . 1 . 1 . Recyclers Shooed 1 | . 1 . . . Parts Field Recycled . | . . . . . Retrieved Matter . | . . . . . Parts Self-Destructed . | . . . . . Prevented . | . . . . . Kills | -11 -10 -10 -9 -9 ------- Run | Yrd Mat Min Mat Min Combat Hostiles Destroyed 29 | . 15 2 12 . Guns 16 | . 11 1 4 . Cannons 12 | . 4 1 7 . AOE 1 | . . . 1 . Classes Destroyed 8 | 3 4 . 1 . Worker 3 | 1 1 . . 1 Tunneler 5 | 4 1 . . . Hauler 2 | . 1 . 1 . Recycler 2 | 1 . . 1 . Watcher 3 | . 3 . . . Swarmer 7 | . 5 . 2 . Grunt 18 | . 10 2 6 . Sentry 4 | . . . 4 . Best Kill Streak 4 | 4 4 2 3 4 Combat Bots Only 3 | . 3 2 3 . Max Kills in Single Turn 2 | 1 2 1 1 1 Gunslinging . | . . . . . Exploded 1 | . . . 1 . Melee . | . . . . . Uniques/NPCs Destroyed . | . . . . . Combat | -11 -10 -10 -9 -9 -------- Run | Yrd Mat Min Mat Min Hostile Shots Fired 263 | . 85 15 134 29 Missed 74 | . 27 5 35 7 Damage Taken 2495 | . 675 109 1129 582 Core 618 | . 206 10 190 212 Absorbed by Shields . | . . . . . Core Remaining (%) 56 | 100 . 13 . . Volleys Fired 170 | 30 61 15 61 3 Largest 2 | 1 2 2 2 1 Hottest 100 | 20 85 85 100 40 Shots Fired 279 | 30 121 24 101 3 Gun 189 | 30 111 9 36 3 Cannon 85 | . 10 15 60 . Launcher 5 | . . . 5 . Special . | . . . . . Kinetic 116 | 30 61 15 10 . Thermal 144 | . 60 3 78 3 Explosive 5 | . . . 5 . Electromagnetic 14 | . . 6 8 . Robot Hit Streak 12 | 4 12 4 10 1 Robot Miss Streak 5 | 2 4 1 5 2 Penetration Max . | . . . . . Secondary Targets 1 | . 1 . . . Max Gunslinging Chain 1 | . 1 . . . Shots Hit Robots 163 | 18 74 17 53 1 Core Hits 68 | 7 33 6 21 1 Critical Kills . | . . . . . Critical Parts Destroyed . | . . . . . Critical Strikes 7 | . 4 3 . . Burn 5 | . 4 1 . . Blast 2 | . . 2 . . Melee Attacks . | . . . . . Impact . | . . . . . Slashing . | . . . . . Piercing . | . . . . . Sneak Attacks . | . . . . . Combat Hostiles . | . . . . . Follow-up Attacks . | . . . . . Damage Inflicted 2366 | 215 945 262 934 10 Guns 1385 | 215 825 92 243 10 Cannons 850 | . 120 170 560 . Explosions 131 | . . . 131 . Melee . | . . . . . Ramming . | . . . . . Kinetic 973 | 215 536 170 52 . Thermal 1153 | . 409 37 697 10 Explosive 131 | . . . 131 . Electromagnetic 109 | . . 55 54 . Impact . | . . . . . Slashing . | . . . . . Piercing . | . . . . . Highest Corruption 3 | . . . . 3 Average Corruption 3 | . . . . 3 Corruption Purged . | . . . . . Corruption Blocked . | . . . . . Overload Shots . | . . . . . Overflow Damage 7 | . . . 7 . Projectiles . | . . . . . Explosions 7 | . . . 7 . Melee . | . . . . . Knockbacks 5 | . 3 2 . . Impact . | . . . . . Kinetic 5 | . 3 2 . . Secondary . | . . . . . Self-Inflicted Damage 38 | . . . 38 . Shots 1 | . . . 1 . Rammed . | . . . . . Targets Rammed . | . . . . . Kicked . | . . . . . Crushed . | . . . . . Highest Temperature 153 | . 153 7 132 . Average Temperature 38 | . 41 4 38 . Received Heat Transfer 688 | . 294 63 291 40 Siege Activations . | . . . . . Robots Corrupted . | . . . . . Combat Hostiles . | . . . . . Parts Fried . | . . . . . Impact Corruptions . | . . . . . Robots Melted . | . . . . . Combat Hostiles . | . . . . . Parts Melted 4 | . . . 4 . Heat Transferred 3225 | . 1517 185 1498 25 Parts Sabotaged . | . . . . . Parts Stolen . | . . . . . Parts Stripped . | . . . . . Power Chain Reactions . | . . . . . Alert | -11 -10 -10 -9 -9 ------- Run | Yrd Mat Min Mat Min Peak Influence 244 | 30 244 55 195 61 Initial 56 | . 19 15 21 56 Average 63 | 20 67 38 74 52 Maximum Alert Level 1 | . 1 . . . Low Security (%) 95 | 100 90 100 100 100 Level 1 4 | . 9 . . . Level 2 . | . . . . . Level 3 . | . . . . . Level 4 . | . . . . . Level 5 . | . . . . . High Security . | . . . . . Max Security . | . . . . . Squads Dispatched 4 | . 3 . 1 . Investigation 2 | . 2 . . . Extermination . | . . . . . Reinforcement 2 | . 1 . 1 . Assault . | . . . . . Garrison . | . . . . . Intercept . | . . . . . Searches Triggered . | . . . . . Construction Impeded . | . . . . . Haulers Reinforced . | . . . . . Active Scanning Responses . | . . . . . Cargo Convoy Interrupts . | . . . . . Stealth | -11 -10 -10 -9 -9 --------- Run | Yrd Mat Min Mat Min Distress Signals 4 | . 3 . 1 . Communications Jammed . | . . . . . Distress Signals . | . . . . . Times Spotted 70 | . 25 6 22 17 Peak Tracking Total 7 | . 4 3 6 7 Tactical Retreats 5 | . 2 1 2 . Traps | -11 -10 -10 -9 -9 ------- Run | Yrd Mat Min Mat Min Traps Triggered 4 | . 4 . . . Indirectly . | . . . . . Trap Hack Attempts . | . . . . . Triggered . | . . . . . Disarmed . | . . . . . Reprogrammed . | . . . . . Reused . | . . . . . Traps Extracted . | . . . . . Installed . | . . . . . Triggered . | . . . . . Machines | -11 -10 -10 -9 -9 ---------- Run | Yrd Mat Min Mat Min Machines Disabled 1 | . . . 1 . Max in Single Turn 1 | . . . 1 . Machines Repaired . | . . . . . Machines Dismantled . | . . . . . Machines Sabotaged . | . . . . . Overloaded Fab Kills . | . . . . . Hacking | -11 -10 -10 -9 -9 --------- Run | Yrd Mat Min Mat Min Machines Accessed 10 | . 7 . 3 . Terminals 6 | . 5 . 1 . Fabricators . | . . . . . Repair Stations . | . . . . . Recycling Units 3 | . 2 . 1 . Scanalyzers 1 | . . . 1 . Garrison Access . | . . . . . Total Hacks 17 | . 11 . 6 . Successful 10 | . 5 . 5 . Failed 7 | . 6 . 1 . Catastrophic . | . . . . . Database Lockouts . | . . . . . Manual . | . . . . . Terminals 11 | . 8 . 3 . Fabricators . | . . . . . Repair Stations . | . . . . . Recycling Units 4 | . 3 . 1 . Scanalyzers 2 | . . . 2 . Garrison Access . | . . . . . Terminal Hacks 7 | . 4 . 3 . Record 5 | . 4 . 1 . Emergency Access Points 1 | . . . 1 . Zone Layout 1 | . . . 1 . Fabricator Hacks . | . . . . . Repair Station Hacks . | . . . . . Recycling Unit Hacks 1 | . 1 . . . Retrieve Components 1 | . 1 . . . Scanalyzer 2 | . . . 2 . Insert Component 1 | . . . 1 . Analyze 1 | . . . 1 . Garrison Access Hacks . | . . . . . Unauthorized Hacks . | . . . . . Terminals . | . . . . . Fabricators . | . . . . . Repair Stations . | . . . . . Recycling Units . | . . . . . Scanalyzers . | . . . . . Garrison Access . | . . . . . Data Cores Recovered . | . . . . . Used . | . . . . . Hacking Detections 5 | . 4 . 1 . Full Trace Events . | . . . . . Feedback Events . | . . . . . Feedback Blocked . | . . . . . Robot Schematics Acquired . | . . . . . Robots Built . | . . . . . Authchips . | . . . . . Time . | . . . . . Total Robot Build Rating . | . . . . . Part Schematics Acquired 1 | . . . 1 . Parts Built . | . . . . . Authchips . | . . . . . Time . | . . . . . Total Part Build Rating . | . . . . . Parts Repaired . | . . . . . Time . | . . . . . Parts Recycled . | . . . . . Recycled Matter . | . . . . . Retrieved Matter . | . . . . . Retrieved Components 1 | . 1 . . . Parts Scanalyzed 1 | . . . 1 . Part Schematics Acquired 1 | . . . 1 . Parts Damaged . | . . . . . Bothacking | -11 -10 -10 -9 -9 ------------ Run | Yrd Mat Min Mat Min Used RIF Installer . | . . . . . Robots Hacked . | . . . . . Non-combat . | . . . . . Combat . | . . . . . Robot Hacks Applied . | . . . . . Relay Couplers Released . | . . . . . Fabnet Peak Effective % . | . . . . . Robots Rewired . | . . . . . Allies Hacked . | . . . . . Hacks Repelled . | . . . . . Allies | -11 -10 -10 -9 -9 -------- Run | Yrd Mat Min Mat Min Total Allies . | . . . . . Largest Group . | . . . . . Highest-Rated Group . | . . . . . Highest-Rated Ally . | . . . . . Total Orders . | . . . . . Ally Attacks . | . . . . . Total Damage . | . . . . . Kills . | . . . . . Allies Corrupted . | . . . . . Allies Melted . | . . . . . Intel | -11 -10 -10 -9 -9 ------- Run | Yrd Mat Min Mat Min Robot Analysis Total . | . . . . . Derelict Logs Recovered 1 | . . . . 1 Drone Launches . | . . . . . Drone Recoveries . | . . . . . Exploration | -11 -10 -10 -9 -9 ------------- Run | Yrd Mat Min Mat Min Turns Passed 3638 | 244 1772 279 1158 185 Spaces Moved 1261 | 103 671 89 359 39 Core 18 | 6 4 . 1 7 Treads . | . . . . . Legs 1243 | 97 667 89 358 32 Wheels . | . . . . . Hover . | . . . . . Flight . | . . . . . Fastest Speed 50 | 50 120 260 190 400 Average Speed 226 | 115 207 260 261 460 Slowest Speed 850 | 120 850 260 700 800 Overloaded Moves . | . . . . . Propulsion Burnouts . | . . . . . Robots Hopped . | . . . . . Cave-ins Triggered 1 | . . . . 1 Exploration Rate (%) 30 | 5 96 16 23 14 Regions Visited 4 Branch Regions 2 Pre-discovered Areas 1 | . . . . 1 Known Exits Taken . | . . . . . Unknown Exits Taken 4 | 1 1 1 1 . Scrap Searched . | . . . . . Spaces Dug 10 | . . . 10 . Terrain Destroyed 55 | . . . 55 . Melee . | . . . . . Projectile . | . . . . . AOE 55 | . . . 55 . Terrain Rammed . | . . . . . Walls Destroyed . | . . . . . Machines Disabled . | . . . . . Actions | -11 -10 -10 -9 -9 --------- Run | Yrd Mat Min Mat Min Total 1775 | 197 935 114 482 47 Wait 273 | 50 172 8 43 . Move 1257 | 102 670 88 358 39 Hop . | . . . . . Pick Up 40 | 9 18 1 11 1 Fast Attach . | . . . . . Attach 28 | 6 7 2 9 4 Detach . | . . . . . Swap 3 | . 3 . . . Drop 4 | . 4 . . . Fire 170 | 30 61 15 61 3 Melee . | . . . . . Ram . | . . . . . Kick . | . . . . . Crush . | . . . . . Escape Stasis . | . . . . . Rewire . | . . . . . Trap . | . . . . . Miscellaneous . | . . . . . Route ------- -11/Scrapyard -10/Materials (discovered 3 exits: *Mat x2 / [*Min]) -10/Mines -9/Materials (discovered 2 exits: [*Min] / [*Sto]) -9/Mines History --------- Turn | Location | Event 5 | -11/Scrapyard | Discovered new exit (range 14) 245 | -11/Scrapyard | Entered Materials 306 | -10/Materials | Build established: Mutant 722 | -10/Materials | Discovered new exit (range 16) 880 | -10/Materials | Discovered new exit (range 16) 1219 | -10/Materials | Core integrity fell below 50% 1666 | -10/Materials | Discovered new exit (range 16) 1976 | -10/Materials | Core integrity fell below 20% 2017 | -10/Materials | Entered Mines 2028 | -10/Mines | Discovered new exit (range 10) 2031 | -10/Mines | Received a Rocket Launcher from a helpful Derelict 2296 | -10/Mines | Entered Materials 2296 | -9/Materials | Evolved 2 slots: Power x1, Utility x1 2318 | -9/Materials | Discovered new exit (range 14) 2482 | -9/Materials | Lost 3 parts (1n2w) 3391 | -9/Materials | Discovered new exit (range 6) 3454 | -9/Materials | Entered Mines 3485 | -9/Mines | Lost 5 parts (1p2n1u1w) 3500 | -9/Mines | Learned location of Recycling (-9) 3562 | -9/Mines | Assembled infested the area 3596 | -9/Mines | Core integrity fell below 50% 3600 | -9/Mines | Crushed by falling debris 3615 | -9/Mines | Core integrity fell below 20% 3639 | -9/Mines | Destroyed by as-96454 with Assembled F-torch Last Messages --------------- 03616_ K-01 Serf collects debris. 03616_ U-05 Engineer builds a Wall. 03619_ The unstable cave ceiling collapses. 03619_ as-73749 destroyed. 03619_ K-01 Serf destroyed. 03620_ U-05 Engineer lays Concrete. 03621_ The unstable cave ceiling collapses. 03622_ U-05 Engineer lays Concrete. 03623_ The unstable cave ceiling collapses. 03623_ Lgt. Ion Engine destroyed. 03623_ U-05 Engineer lays Concrete. 03624_ U-05 Engineer builds a Wall. 03633_ R-06 Scavenger suffers critical hit (Burn). 03634_ K-01 Serf collects debris. 03634_ R-06 Scavenger destroyed. 03636_ as-89733 sneak attacks. 03636_ K-01 Serf destroyed. 03637_ Heat Sink destroyed. 03637_ System corrupted by crushing effect (+3). Map ----- +----------------------------------------------------+ | ??????????????????????????????????????????????? | | ??????????????????????????????????????????????? | | ??????????????????????????????????????????????? | | ??????????????????????????????????????????????? | | ??????????????????????????????????????????????? | | ???????????????????#??????????????????????????? | | ???????????????????# ????????????????????????? | | ???????????????????# ????????????????????????? | | ???????????????????# ????????????????????????? | | ???????????????????# ????????????????????????? | | ???????????????????# ????????????????????????? | | ???????????????????# ????????????????????????? | | ??????????????????## ????????????????????????? | | ??????????????????# #######?????????????????? | | ??????????????????#!% # ##?????? ???????? | | ??????????????????# * ##????%$ ???????? | | ??????????????????# ## # ###? # ???????? | | ??????????????????# a ## ## # % % ##??????? | | ??????????????????# !% # #??????? | | ??????????????????# a## % ???????? | | ??????????????????# ## % ##??????????? | | ??????????????????# #??????????? | | ??????????????????## a ##???????????? | | ???????????????????##aa# %! ####????????????? | | ????????????????????# #### ###???????????????? | | ????????????????????# @#??? ????????????????? | | ????????????????????# #??? ??????????????? | | ?????????????????#### #????# ?????????????? | | ?????????????????# #????? ???????????? | | ?????????????????# #?????# ??????????? | | ?????##########??# ####??????####? ?????????? | | ?????# """ #??# #??????????????? ?????????? | | ?????# """ #??# #?????????????????????????? | | ?????# """ #??# #?????????????????????????? | | ?????# #??# #?????????????????????????? | | ?????# #### #?????????????????????????? | | ?????# #?????????????????????????? | | ?????################?????????????????????????? | | ??????????????????????????????????????????????? | | ??????????????????????????????????????????????? | | ??????????????????????????????????????????????? | | ??????????????????????????????????????????????? | | | | | | | | | | | | | | | | | +----------------------------------------------------+ Best States ------------- Heat Dissipation 38 Energy Generation 17 Energy Capacity 415 Matter Stores 300 Matter Capacity 300 Sight Range 16 Terrain Scan Range 16 Terrain Scan Density 10 Evasion (%) 55 Targeting Accuracy 5 Item Schematics ----------------- Targeting Computer | -9/Materials | Scanalyzed Robot Schematics ------------------ None Fabricated ------------ Nothing Alien Tech Used ----------------- None Achievements -------------- None Challenges ------------ None Game ------ Seed HypervelocityPowerBay Manual? 0 Play Time 00:30:12 Cumulative 8.2 hours Start 2024.09.23 @ 18:43:03 End 2024.09.23 @ 19:11:57 Sessions 1 Manual Loads 0 Difficulty Rogue Special Mode None Game No. 11 Rogue 11 Adventurer 0 Explorer 0 Win Type - Total 0 Types 0/0/0/0/0/0/0/0/0 Lore% 5 Gallery% 9 Achievement% 13 Wizard Run 0 Options --------- Layout 1 ASCII 0 Keyboard 0 Movement Mouse Keybinds 0 Fullscreen 1 Font 32/SmallcapsGlow Map View 50x35 Zoom Use 0% Tactical HUD 1 Map Filters NONE Filters NONE Steam 1 RUN: 02461e78-38ac-471c-90f0-4bb66d5e42d0